[Event "*** Titled Tuesday Blitz"]
[Site "Chess.com"]
[Date "2020.05.12"]
[Round "3"]
[White "relaxx87"]
[Black "wonderfultime"]
[Result "1-0"]
[WhiteElo "2682"]
[BlackElo "2945"]
[TimeControl "180+1"]
[EndTime "10:30:09 PDT"]
[Termination "relaxx87 won by resignation"]

1. e4 {[%clk 0:03:00.9]} 1... c5 {[%clk 0:02:59.8]} 2. Nf3 {[%clk 0:03:00.3]}
2... Nf6 {[%clk 0:03:00.3]} 3. e5 {[%clk 0:02:57.5]} 3... Nd5 {[%clk 0:03:00.6]}
4. Nc3 {[%clk 0:02:52.5]} 4... e6 {[%clk 0:03:00.8]} 5. Nxd5 {[%clk 0:02:45.5]}
5... exd5 {[%clk 0:03:01.7]} 6. d4 {[%clk 0:02:33.1]} 6... Nc6 {[%clk
0:03:00.7]} 7. dxc5 {[%clk 0:02:30.9]} 7... Bxc5 {[%clk 0:03:01.6]} 8. Qxd5
{[%clk 0:02:30.9]} 8... d6 {[%clk 0:03:02]} 9. Bd3 {[%clk 0:01:25.7]} 9... Qa5+
{[%clk 0:02:33.8]} 10. Kf1 {[%clk 0:01:20.5]} 10... Nb4 {[%clk 0:01:31.3]} 11.
Qe4 {[%clk 0:01:16.9]} 11... Nxd3 {[%clk 0:01:19.3]} 12. exd6+ {[%clk
0:01:14.9]} 12... Be6 {[%clk 0:01:19.8]} 13. Qxd3 {[%clk 0:01:14.6]} 13... Rd8
{[%clk 0:01:04.1]} 14. Be3 {[%clk 0:01:06.9]} 14... Bxd6 {[%clk 0:00:56.8]} 15.
Qc3 {[%clk 0:00:58.1]} 15... Qa6+ {[%clk 0:00:53.2]} 16. Kg1 {[%clk 0:00:57.5]}
16... O-O {[%clk 0:00:53.7]} 17. Bd4 {[%clk 0:00:56.8]} 17... Rc8 {[%clk
0:00:49.2]} 18. Qd2 {[%clk 0:00:55.8]} 18... Rfd8 {[%clk 0:00:48.2]} 19. Qg5
{[%clk 0:00:55.1]} 19... Bf8 {[%clk 0:00:46.7]} 20. c3 {[%clk 0:00:55.1]} 20...
h6 {[%clk 0:00:46.1]} 21. Qg3 {[%clk 0:00:55.1]} 21... Qe2 {[%clk 0:00:41.2]}
22. h3 {[%clk 0:00:54.4]} 22... Qxb2 {[%clk 0:00:41]} 23. Kh2 {[%clk 0:00:54.7]}
23... Qa3 {[%clk 0:00:34.2]} 24. Rhe1 {[%clk 0:00:53.7]} 24... b6 {[%clk
0:00:33.5]} 25. Kg1 {[%clk 0:00:53.9]} 25... Qd6 {[%clk 0:00:33.2]} 26. Be5
{[%clk 0:00:52.6]} 26... Qd5 {[%clk 0:00:33.4]} 27. a4 {[%clk 0:00:53.5]} 27...
Qd3 {[%clk 0:00:27.8]} 28. Re3 {[%clk 0:00:52.6]} 28... Qf5 {[%clk 0:00:26.3]}
29. Nd4 {[%clk 0:00:52.6]} 29... Qh5 {[%clk 0:00:18.1]} 30. Nxe6 {[%clk
0:00:51.9]} 30... fxe6 {[%clk 0:00:19]} 31. a5 {[%clk 0:00:52.3]} 31... b5
{[%clk 0:00:17.1]} 32. a6 {[%clk 0:00:52.3]} 32... Rd7 {[%clk 0:00:17.5]} 33.
Re4 {[%clk 0:00:48.6]} 33... Rf7 {[%clk 0:00:16.2]} 34. Rg4 {[%clk 0:00:47.7]}
34... Qf5 {[%clk 0:00:14.8]} 35. f4 {[%clk 0:00:46]} 35... Kh7 {[%clk
0:00:14.3]} 36. Kh2 {[%clk 0:00:45.6]} 36... h5 {[%clk 0:00:14.5]} 37. Rg5
{[%clk 0:00:45.6]} 37... Qe4 {[%clk 0:00:14.3]} 38. Rxh5+ {[%clk 0:00:45.7]}
38... Kg8 {[%clk 0:00:14.1]} 39. Qh4 {[%clk 0:00:46.4]} 39... Rf5 {[%clk
0:00:14.3]} 40. Rh8+ {[%clk 0:00:45.5]} 40... Kf7 {[%clk 0:00:14.7]} 41. Qg4
{[%clk 0:00:44.1]} 41... b4 {[%clk 0:00:11]} 42. Rd1 {[%clk 0:00:43.2]} 42...
Rxe5 {[%clk 0:00:06.1]} 43. fxe5 {[%clk 0:00:40.2]} 43... Qxg4 {[%clk
0:00:06.3]} 44. hxg4 {[%clk 0:00:41.1]} 44... bxc3 {[%clk 0:00:07.2]} 45. Rf1+
{[%clk 0:00:34.7]} 45... Ke7 {[%clk 0:00:06.6]} 46. Rh3 {[%clk 0:00:34.3]} 46...
c2 {[%clk 0:00:06.8]} 47. Rc1 {[%clk 0:00:32.5]} 47... Kf7 {[%clk 0:00:05.8]}
48. Rf3+ {[%clk 0:00:32.7]} 48... Kg6 {[%clk 0:00:05.7]} 49. Rf2 {[%clk
0:00:33.6]} 49... Be7 {[%clk 0:00:02.4]} 50. Rcxc2 {[%clk 0:00:33.7]} 50... Rh8+
{[%clk 0:00:03]} 51. Kg1 {[%clk 0:00:32]} 51... Bg5 {[%clk 0:00:03.6]} 52. Rf3
{[%clk 0:00:32.2]} 52... Rb8 {[%clk 0:00:02.9]} 53. Rc6 {[%clk 0:00:32.7]} 53...
Rb1+ {[%clk 0:00:03.2]} 54. Kh2 {[%clk 0:00:33.2]} 54... Re1 {[%clk 0:00:01.3]}
55. Rxe6+ {[%clk 0:00:33.1]} 55... Kh7 {[%clk 0:00:02.2]} 56. Kg3 {[%clk
0:00:33.1]} 56... Re4 {[%clk 0:00:01.9]} 57. Rf7 {[%clk 0:00:32.7]} 57... Ra4
{[%clk 0:00:01.8]} 58. Rxa7 {[%clk 0:00:31.7]} 58... Ra3+ {[%clk 0:00:02.7]} 59.
Kh2 {[%clk 0:00:28.9]} 59... Bf4+ {[%clk 0:00:03]} 60. g3 {[%clk 0:00:29.5]}
60... Rxg3 {[%clk 0:00:02.9]} 61. Kh1 {[%clk 0:00:29.7]} 61... Rh3+ {[%clk
0:00:02.9]} 62. Kg2 {[%clk 0:00:29.2]} 62... Ra3 {[%clk 0:00:03.8]} 63. Ree7
{[%clk 0:00:29]} 63... Bh6 {[%clk 0:00:04]} 64. e6 {[%clk 0:00:29.1]} 64... Kg6
{[%clk 0:00:04.2]} 65. Rf7 {[%clk 0:00:27.4]} 65... Ra2+ {[%clk 0:00:04]} 66.
Kf3 {[%clk 0:00:26.9]} 66... Ra3+ {[%clk 0:00:04.5]} 67. Ke4 {[%clk 0:00:27]}
67... Ra4+ {[%clk 0:00:02.4]} 68. Kd5 {[%clk 0:00:27.1]} 68... Ra1 {[%clk
0:00:02.9]} 69. Rfd7 {[%clk 0:00:26.3]} 69... Kf6 {[%clk 0:00:02.6]} 70. Rf7+
{[%clk 0:00:25.7]} 70... Kg6 {[%clk 0:00:02.3]} 71. Rf3 {[%clk 0:00:25]} 71...
Rd1+ {[%clk 0:00:02.4]} 72. Kc6 {[%clk 0:00:24.8]} 72... Re1 {[%clk 0:00:02.4]}
73. Kd7 {[%clk 0:00:23.6]} 73... Bg5 {[%clk 0:00:03.3]} 74. Rb7 {[%clk
0:00:21.6]} 74... Rd1+ {[%clk 0:00:03.7]} 75. Kc6 {[%clk 0:00:20.3]} 75... Rc1+
{[%clk 0:00:04]} 76. Kd5 {[%clk 0:00:20]} 76... Rd1+ {[%clk 0:00:04.2]} 77. Kc4
{[%clk 0:00:20.4]} 77... Rc1+ {[%clk 0:00:04.6]} 78. Rc3 {[%clk 0:00:20.5]}
78... Re1 {[%clk 0:00:04.1]} 79. a7 {[%clk 0:00:20.4]} 79... Ra1 {[%clk
0:00:04.6]} 80. Kb5 {[%clk 0:00:19.4]} 80... Bf6 {[%clk 0:00:03.9]} 81. Rc4
{[%clk 0:00:18.8]} 81... Kg5 {[%clk 0:00:03.8]} 82. Ra4 {[%clk 0:00:18.6]} 1-0

[Event "*** Titled Tuesday Blitz"]
[Site "Chess.com"]
[Date "2020.05.12"]
[Round "3"]
[White "Sanan_Sjugirov"]
[Black "Revnov"]
[Result "0-1"]
[WhiteElo "2915"]
[BlackElo "2671"]
[TimeControl "180+1"]
[EndTime "10:30:10 PDT"]
[Termination "Revnov won by resignation"]

1. e4 {[%clk 0:03:00.9]} 1... c5 {[%clk 0:02:54]} 2. Nf3 {[%clk 0:03:00.9]} 2...
d6 {[%clk 0:02:54.1]} 3. Bb5+ {[%clk 0:03:00.6]} 3... Bd7 {[%clk 0:02:53.1]} 4.
Bxd7+ {[%clk 0:03:00.6]} 4... Qxd7 {[%clk 0:02:54]} 5. O-O {[%clk 0:02:59.9]}
5... Nc6 {[%clk 0:02:54.5]} 6. c3 {[%clk 0:02:59.5]} 6... Nf6 {[%clk 0:02:51.6]}
7. d4 {[%clk 0:02:56.1]} 7... cxd4 {[%clk 0:02:48.8]} 8. cxd4 {[%clk 0:02:57]}
8... Nxe4 {[%clk 0:02:49.2]} 9. d5 {[%clk 0:02:53.9]} 9... Ne5 {[%clk
0:02:49.4]} 10. Re1 {[%clk 0:02:38.9]} 10... Nf6 {[%clk 0:02:27.5]} 11. Nxe5
{[%clk 0:02:37.9]} 11... dxe5 {[%clk 0:02:28.4]} 12. Rxe5 {[%clk 0:02:35.2]}
12... e6 {[%clk 0:02:02.5]} 13. Nc3 {[%clk 0:02:31.2]} 13... Bd6 {[%clk
0:01:44.7]} 14. dxe6 {[%clk 0:02:24.5]} 14... fxe6 {[%clk 0:01:45.6]} 15. Re1
{[%clk 0:02:19.8]} 15... O-O {[%clk 0:01:43.9]} 16. Bg5 {[%clk 0:02:09.6]} 16...
Rad8 {[%clk 0:01:41.6]} 17. Qe2 {[%clk 0:02:06.4]} 17... h6 {[%clk 0:01:34.3]}
18. Bxf6 {[%clk 0:01:57.8]} 18... Rxf6 {[%clk 0:01:25.4]} 19. Rad1 {[%clk
0:01:52.6]} 19... Qc6 {[%clk 0:01:00.9]} 20. g3 {[%clk 0:01:35]} 20... Bc7
{[%clk 0:00:49.8]} 21. Rxd8+ {[%clk 0:01:33.1]} 21... Bxd8 {[%clk 0:00:50.7]}
22. Ne4 {[%clk 0:00:52.4]} 22... Rf8 {[%clk 0:00:46.5]} 23. Qd3 {[%clk
0:00:37.7]} 23... Bb6 {[%clk 0:00:44.7]} 24. Re2 {[%clk 0:00:37.9]} 24... Rf5
{[%clk 0:00:42.4]} 25. a3 {[%clk 0:00:34.3]} 25... Rd5 {[%clk 0:00:41.7]} 26.
Qc3 {[%clk 0:00:31.8]} 26... Qd7 {[%clk 0:00:39.3]} 27. Kg2 {[%clk 0:00:30.7]}
27... Kh8 {[%clk 0:00:37.3]} 28. h4 {[%clk 0:00:30.1]} 28... Qf7 {[%clk
0:00:36.8]} 29. Qf3 {[%clk 0:00:29.8]} 29... Rf5 {[%clk 0:00:36.3]} 30. Qd3
{[%clk 0:00:27.7]} 30... Rd5 {[%clk 0:00:36.6]} 31. Qf3 {[%clk 0:00:27.8]} 31...
Rf5 {[%clk 0:00:36.7]} 32. Qg4 {[%clk 0:00:28]} 32... Kh7 {[%clk 0:00:35.8]} 33.
Rc2 {[%clk 0:00:23.5]} 33... Qd7 {[%clk 0:00:33.3]} 34. Qe2 {[%clk 0:00:22.3]}
34... Rd5 {[%clk 0:00:27.6]} 35. Qf3 {[%clk 0:00:14.8]} 35... Rf5 {[%clk
0:00:26.4]} 36. Qe2 {[%clk 0:00:14.7]} 36... Qf7 {[%clk 0:00:24.9]} 37. Qd3
{[%clk 0:00:13.2]} 37... Qg6 {[%clk 0:00:20.8]} 38. Rd2 {[%clk 0:00:11.5]} 38...
Rd5 {[%clk 0:00:20]} 39. Qe2 {[%clk 0:00:11.7]} 39... Qf5 {[%clk 0:00:18.6]} 40.
Rxd5 {[%clk 0:00:09.5]} 40... exd5 {[%clk 0:00:19.5]} 41. Nd2 {[%clk 0:00:07.6]}
41... Bd4 {[%clk 0:00:18.7]} 42. Nf3 {[%clk 0:00:07.6]} 42... Bf6 {[%clk
0:00:18.2]} 43. Ne1 {[%clk 0:00:08]} 43... Kg6 {[%clk 0:00:16.7]} 44. Nd3 {[%clk
0:00:07.6]} 44... Qe4+ {[%clk 0:00:16.8]} 45. Qxe4+ {[%clk 0:00:07.7]} 45...
dxe4 {[%clk 0:00:17.7]} 46. Nf4+ {[%clk 0:00:06.6]} 46... Kf5 {[%clk 0:00:18.1]}
47. b3 {[%clk 0:00:07.5]} 47... Ke5 {[%clk 0:00:17.2]} 48. Ne2 {[%clk
0:00:07.9]} 48... Kd5 {[%clk 0:00:15.7]} 49. Kf1 {[%clk 0:00:08.4]} 49... b5
{[%clk 0:00:15.6]} 50. Ke1 {[%clk 0:00:08.2]} 50... Bb2 {[%clk 0:00:16]} 51. Kd2
{[%clk 0:00:07.6]} 51... Ke5 {[%clk 0:00:10.9]} 52. a4 {[%clk 0:00:07.3]} 52...
bxa4 {[%clk 0:00:11.8]} 53. bxa4 {[%clk 0:00:08.2]} 53... Kd5 {[%clk 0:00:11.5]}
54. Kc2 {[%clk 0:00:08.7]} 54... Be5 {[%clk 0:00:11.5]} 55. Kb3 {[%clk
0:00:08.9]} 55... Bd4 {[%clk 0:00:08.9]} 56. Nf4+ {[%clk 0:00:09.2]} 56... Ke5
{[%clk 0:00:07.1]} 57. Nh3 {[%clk 0:00:06.3]} 57... a6 {[%clk 0:00:06.6]} 58.
Kc4 {[%clk 0:00:06.8]} 58... g5 {[%clk 0:00:04.4]} 59. hxg5 {[%clk 0:00:06.7]}
59... hxg5 {[%clk 0:00:05.3]} 60. g4 {[%clk 0:00:05.6]} 60... Ba7 {[%clk
0:00:04.9]} 61. Nxg5 {[%clk 0:00:05.8]} 61... Bxf2 {[%clk 0:00:04.1]} 62. Nh3
{[%clk 0:00:06.7]} 62... Ba7 {[%clk 0:00:03.8]} 63. g5 {[%clk 0:00:07.1]} 63...
Kf5 {[%clk 0:00:04.1]} 64. Kc3 {[%clk 0:00:07.3]} 64... Bb8 {[%clk 0:00:04.5]}
65. g6 {[%clk 0:00:07.4]} 65... Be5+ {[%clk 0:00:04.7]} 66. Kc4 {[%clk
0:00:07.6]} 66... Kxg6 {[%clk 0:00:04]} 67. Nf2 {[%clk 0:00:08.3]} 67... Kf5
{[%clk 0:00:04.9]} 68. Nd1 {[%clk 0:00:09.2]} 68... Kf4 {[%clk 0:00:04.9]} 69.
Kd5 {[%clk 0:00:09.2]} 69... Ba1 {[%clk 0:00:04.5]} 70. Kc5 {[%clk 0:00:08.9]}
70... Kf3 {[%clk 0:00:04.9]} 71. Kd5 {[%clk 0:00:07.1]} 71... Ke2 {[%clk
0:00:04.5]} 72. Kxe4 {[%clk 0:00:06.2]} 72... Kxd1 {[%clk 0:00:05]} 73. Kd5
{[%clk 0:00:07.1]} 73... a5 {[%clk 0:00:05.5]} 74. Kc4 {[%clk 0:00:07.6]} 74...
Bb2 {[%clk 0:00:05.6]} 75. Kb5 {[%clk 0:00:08.5]} 75... Bc3 {[%clk 0:00:05.6]}
76. Kc4 {[%clk 0:00:09.4]} 76... Bb4 {[%clk 0:00:06.5]} 77. Kb3 {[%clk
0:00:09.7]} 77... Kc1 {[%clk 0:00:07.4]} 78. Kc4 {[%clk 0:00:10.6]} 78... Kb2
{[%clk 0:00:08.1]} 79. Kb5 {[%clk 0:00:10.9]} 79... Ka3 {[%clk 0:00:09]} 80. Kc4
{[%clk 0:00:11.8]} 80... Kxa4 {[%clk 0:00:09.6]} 0-1

[Event "*** Titled Tuesday Blitz"]
[Site "Chess.com"]
[Date "2020.05.12"]
[Round "3"]
[White "ketster"]
[Black "Mouse-Sleep"]
[Result "0-1"]
[WhiteElo "2284"]
[BlackElo "2517"]
[TimeControl "180+1"]
[EndTime "10:30:11 PDT"]
[Termination "Mouse-Sleep won by checkmate"]

1. d4 {[%clk 0:02:59.5]} 1... Nf6 {[%clk 0:02:58.7]} 2. c4 {[%clk 0:02:59.4]}
2... a6 {[%clk 0:02:58.7]} 3. Nc3 {[%clk 0:02:58.6]} 3... c5 {[%clk 0:02:58.8]}
4. dxc5 {[%clk 0:02:55.5]} 4... e6 {[%clk 0:02:58.5]} 5. Bg5 {[%clk 0:02:49.5]}
5... Bxc5 {[%clk 0:02:57.6]} 6. e3 {[%clk 0:02:49.7]} 6... h6 {[%clk 0:02:53.7]}
7. Bh4 {[%clk 0:02:48.4]} 7... Nc6 {[%clk 0:02:44.9]} 8. Nf3 {[%clk 0:02:47.4]}
8... Bb4 {[%clk 0:02:41]} 9. Qc2 {[%clk 0:02:37.9]} 9... Qa5 {[%clk 0:02:33.8]}
10. Bd3 {[%clk 0:02:24.4]} 10... Ng4 {[%clk 0:02:19.7]} 11. O-O {[%clk
0:02:12.4]} 11... Bxc3 {[%clk 0:02:04.6]} 12. Qxc3 {[%clk 0:02:06.6]} 12... Qxc3
{[%clk 0:02:02.8]} 13. bxc3 {[%clk 0:02:07.5]} 13... Nge5 {[%clk 0:01:55.1]} 14.
Nxe5 {[%clk 0:02:03.7]} 14... Nxe5 {[%clk 0:01:56]} 15. Be2 {[%clk 0:02:03.9]}
15... f6 {[%clk 0:01:11.4]} 16. f4 {[%clk 0:01:45]} 16... Nc6 {[%clk 0:01:11.1]}
17. e4 {[%clk 0:01:32.3]} 17... Na5 {[%clk 0:00:59.5]} 18. Bf2 {[%clk
0:01:27.2]} 18... Kf7 {[%clk 0:00:50.6]} 19. Rfd1 {[%clk 0:01:22.2]} 19... Re8
{[%clk 0:00:41.6]} 20. Rab1 {[%clk 0:01:17]} 20... Nc6 {[%clk 0:00:36.5]} 21. c5
{[%clk 0:01:09.3]} 21... a5 {[%clk 0:00:33.8]} 22. a4 {[%clk 0:01:04.7]} 22...
Nb8 {[%clk 0:00:26.5]} 23. Bb5 {[%clk 0:00:55.3]} 23... Ke7 {[%clk 0:00:23.6]}
24. Rd6 {[%clk 0:00:48.3]} 24... Rd8 {[%clk 0:00:16.9]} 25. Rbd1 {[%clk
0:00:43.3]} 25... Na6 {[%clk 0:00:17.3]} 26. Be3 {[%clk 0:00:41.5]} 26... Nc7
{[%clk 0:00:17]} 27. Bc4 {[%clk 0:00:38.3]} 27... Ne8 {[%clk 0:00:16.5]} 28.
R6d2 {[%clk 0:00:33.1]} 28... Nc7 {[%clk 0:00:16.9]} 29. Kf2 {[%clk 0:00:31.7]}
29... Na6 {[%clk 0:00:16.4]} 30. Kf3 {[%clk 0:00:27.2]} 30... Rb8 {[%clk
0:00:16.7]} 31. Rd6 {[%clk 0:00:26.7]} 31... Nc7 {[%clk 0:00:16.6]} 32. Rb6
{[%clk 0:00:26]} 32... Na8 {[%clk 0:00:16.2]} 33. Rb5 {[%clk 0:00:24.4]} 33...
b6 {[%clk 0:00:13.4]} 34. cxb6 {[%clk 0:00:23.8]} 34... Ba6 {[%clk 0:00:13.7]}
35. Rc5 {[%clk 0:00:19.9]} 35... Bxc4 {[%clk 0:00:13.5]} 36. Rxc4 {[%clk
0:00:19.8]} 36... Nxb6 {[%clk 0:00:14.4]} 37. Bc5+ {[%clk 0:00:16.8]} 37... d6
{[%clk 0:00:12]} 38. Bxb6 {[%clk 0:00:16]} 38... Rxb6 {[%clk 0:00:12.4]} 39.
Rc7+ {[%clk 0:00:14.2]} 39... Rd7 {[%clk 0:00:13]} 40. Rxd7+ {[%clk 0:00:12.3]}
40... Kxd7 {[%clk 0:00:13.9]} 41. Ke3 {[%clk 0:00:08.9]} 41... Rb3 {[%clk
0:00:13.9]} 42. Kd3 {[%clk 0:00:08.5]} 42... Ra3 {[%clk 0:00:14.5]} 43. Rb1
{[%clk 0:00:08.8]} 43... Rxa4 {[%clk 0:00:14.6]} 44. Rb7+ {[%clk 0:00:08.7]}
44... Kc6 {[%clk 0:00:14.9]} 45. Rxg7 {[%clk 0:00:09.2]} 45... Ra2 {[%clk
0:00:15.7]} 46. Rg6 {[%clk 0:00:07.6]} 46... a4 {[%clk 0:00:16.2]} 47. Rxf6
{[%clk 0:00:07.4]} 47... Rxg2 {[%clk 0:00:15.2]} 48. Rf8 {[%clk 0:00:03.3]}
48... a3 {[%clk 0:00:14.8]} 49. Ra8 {[%clk 0:00:02.9]} 49... a2 {[%clk 0:00:15]}
50. Kc4 {[%clk 0:00:01.9]} 50... Rxh2 {[%clk 0:00:14.6]} 51. f5 {[%clk 0:00:02]}
51... exf5 {[%clk 0:00:14.5]} 52. exf5 {[%clk 0:00:02.9]} 52... Kc7 {[%clk
0:00:15]} 53. f6 {[%clk 0:00:03.1]} 53... Rf2 {[%clk 0:00:14.7]} 54. f7 {[%clk
0:00:03.4]} 54... Rxf7 {[%clk 0:00:15]} 55. Rxa2 {[%clk 0:00:03.6]} 55... Rf5
{[%clk 0:00:13.9]} 56. Rh2 {[%clk 0:00:03.6]} 56... h5 {[%clk 0:00:14.3]} 57.
Kd4 {[%clk 0:00:04.2]} 57... Kc6 {[%clk 0:00:13.7]} 58. Ke4 {[%clk 0:00:04.7]}
58... Ra5 {[%clk 0:00:13.6]} 59. Kd4 {[%clk 0:00:04.6]} 59... Kd7 {[%clk
0:00:13.5]} 60. Rh3 {[%clk 0:00:04.6]} 60... Ke6 {[%clk 0:00:13.8]} 61. Re3+
{[%clk 0:00:04.4]} 61... Kf5 {[%clk 0:00:14.1]} 62. Rg3 {[%clk 0:00:04.5]} 62...
Kf4 {[%clk 0:00:13.5]} 63. Rg8 {[%clk 0:00:03.3]} 63... h4 {[%clk 0:00:13.1]}
64. Rf8+ {[%clk 0:00:02.7]} 64... Kg4 {[%clk 0:00:12.4]} 65. Rg8+ {[%clk
0:00:03.1]} 65... Rg5 {[%clk 0:00:12.3]} 66. Rh8 {[%clk 0:00:02.5]} 66... h3
{[%clk 0:00:12.1]} 67. Ke3 {[%clk 0:00:03.1]} 67... Kg3 {[%clk 0:00:06.5]} 68.
Ke2 {[%clk 0:00:02.8]} 68... Kg2 {[%clk 0:00:06.7]} 69. Rh7 {[%clk 0:00:02.3]}
69... h2 {[%clk 0:00:06.7]} 70. Ke3 {[%clk 0:00:02.6]} 70... h1=Q {[%clk
0:00:06.6]} 71. Rh2+ {[%clk 0:00:02.8]} 71... Qxh2 {[%clk 0:00:06.5]} 72. Kd4
{[%clk 0:00:03]} 72... Qf4+ {[%clk 0:00:06.7]} 73. Kd3 {[%clk 0:00:02.7]} 73...
Rg3+ {[%clk 0:00:07.4]} 74. Kc2 {[%clk 0:00:03.6]} 74... Qe3 {[%clk 0:00:07.6]}
75. Kb3 {[%clk 0:00:04.5]} 75... Qxc3+ {[%clk 0:00:08.1]} 76. Ka4 {[%clk
0:00:04]} 76... Qb3+ {[%clk 0:00:08.5]} 77. Ka5 {[%clk 0:00:04.2]} 77... Rg8
{[%clk 0:00:08.4]} 78. Ka6 {[%clk 0:00:05.1]} 78... Ra8# {[%clk 0:00:09]} 0-1

[Event "*** Titled Tuesday Blitz"]
[Site "Chess.com"]
[Date "2020.05.12"]
[Round "3"]
[White "CakeinSpace2002"]
[Black "TERMINATOR_PC"]
[Result "0-1"]
[WhiteElo "2211"]
[BlackElo "2452"]
[TimeControl "180+1"]
[EndTime "10:30:13 PDT"]
[Termination "TERMINATOR_PC won by resignation"]

1. e4 {[%clk 0:03:00]} 1... d5 {[%clk 0:02:59.1]} 2. Nc3 {[%clk 0:02:58.5]} 2...
dxe4 {[%clk 0:02:57.9]} 3. Nxe4 {[%clk 0:02:58.5]} 3... Qd5 {[%clk 0:02:58.4]}
4. Nc3 {[%clk 0:02:51.5]} 4... Qe5+ {[%clk 0:02:58.6]} 5. Be2 {[%clk 0:02:49.7]}
5... c6 {[%clk 0:02:58.7]} 6. Nf3 {[%clk 0:02:49.2]} 6... Qc7 {[%clk 0:02:59.6]}
7. O-O {[%clk 0:02:49.7]} 7... Bf5 {[%clk 0:03:00.2]} 8. d4 {[%clk 0:02:48.3]}
8... e6 {[%clk 0:02:59.6]} 9. Ne5 {[%clk 0:02:48.3]} 9... Nd7 {[%clk 0:02:59.8]}
10. Bf4 {[%clk 0:02:48.7]} 10... Nxe5 {[%clk 0:02:59.4]} 11. Bxe5 {[%clk
0:02:46.7]} 11... Qd8 {[%clk 0:02:59.2]} 12. g4 {[%clk 0:02:43.6]} 12... Bg6
{[%clk 0:02:58.5]} 13. f4 {[%clk 0:02:43.7]} 13... f6 {[%clk 0:02:28.7]} 14. f5
{[%clk 0:02:34]} 14... fxe5 {[%clk 0:02:28.8]} 15. fxg6 {[%clk 0:02:31]} 15...
Qxd4+ {[%clk 0:02:28.9]} 16. Qxd4 {[%clk 0:02:29.2]} 16... exd4 {[%clk
0:02:29.8]} 17. Ne4 {[%clk 0:02:29.8]} 17... hxg6 {[%clk 0:02:24.1]} 18. Bc4
{[%clk 0:02:26.6]} 18... O-O-O {[%clk 0:02:04.9]} 19. Bxe6+ {[%clk 0:02:23.8]}
19... Kb8 {[%clk 0:02:05.6]} 20. Ng5 {[%clk 0:02:23]} 20... Nh6 {[%clk
0:01:58.7]} 21. h3 {[%clk 0:02:20.1]} 21... Bc5 {[%clk 0:01:51.4]} 22. Kg2
{[%clk 0:02:19.5]} 22... Rhe8 {[%clk 0:01:49.8]} 23. Rae1 {[%clk 0:02:16]} 23...
Re7 {[%clk 0:01:39.6]} 24. Bc4 {[%clk 0:02:01.8]} 24... Rde8 {[%clk 0:01:26.2]}
25. Rxe7 {[%clk 0:01:58.4]} 25... Rxe7 {[%clk 0:01:25.4]} 26. Bd3 {[%clk
0:01:58]} 26... Kc7 {[%clk 0:01:18]} 27. Bxg6 {[%clk 0:01:34.3]} 27... Re2+
{[%clk 0:01:10.4]} 28. Rf2 {[%clk 0:01:29.1]} 28... Rxf2+ {[%clk 0:00:53.8]} 29.
Kxf2 {[%clk 0:01:30]} 29... d3+ {[%clk 0:00:54.7]} 30. Ke1 {[%clk 0:01:25.7]}
30... dxc2 {[%clk 0:00:50.3]} 31. Bxc2 {[%clk 0:01:26.6]} 31... Kd7 {[%clk
0:00:36.2]} 32. Ke2 {[%clk 0:01:22.3]} 32... Be7 {[%clk 0:00:34.6]} 33. Nf3
{[%clk 0:01:12.9]} 33... Nf7 {[%clk 0:00:30.7]} 34. h4 {[%clk 0:01:10.6]} 34...
Bf6 {[%clk 0:00:28.4]} 35. b3 {[%clk 0:01:09.9]} 35... Nd6 {[%clk 0:00:22.6]}
36. Bd3 {[%clk 0:01:05.3]} 36... b5 {[%clk 0:00:20.8]} 37. g5 {[%clk 0:01:01.5]}
37... Bb2 {[%clk 0:00:20.3]} 38. Ke3 {[%clk 0:00:54]} 38... a5 {[%clk
0:00:12.9]} 39. Kf4 {[%clk 0:00:53.2]} 39... Ke6 {[%clk 0:00:11.6]} 40. h5
{[%clk 0:00:48]} 40... c5 {[%clk 0:00:12.1]} 41. Kg4 {[%clk 0:00:39.9]} 41... c4
{[%clk 0:00:11.3]} 42. bxc4 {[%clk 0:00:39.5]} 42... bxc4 {[%clk 0:00:12.2]} 43.
Bc2 {[%clk 0:00:38.8]} 43... Bc1 {[%clk 0:00:08.4]} 44. Nd4+ {[%clk 0:00:33.7]}
44... Kd5 {[%clk 0:00:08.7]} 45. Nf5 {[%clk 0:00:33.5]} 45... Ne8 {[%clk
0:00:07.5]} 46. Ba4 {[%clk 0:00:31.1]} 46... Nd6 {[%clk 0:00:03.7]} 47. Nxg7
{[%clk 0:00:29.3]} 47... c3 {[%clk 0:00:04.3]} 48. Nf5 {[%clk 0:00:28.4]} 48...
Ne4 {[%clk 0:00:03.3]} 49. h6 {[%clk 0:00:16.3]} 49... Nxg5 {[%clk 0:00:02.6]}
50. Bb3+ {[%clk 0:00:10.5]} 50... Kc5 {[%clk 0:00:03]} 51. Kh5 {[%clk
0:00:08.7]} 51... Kb4 {[%clk 0:00:02.8]} 52. Kg6 {[%clk 0:00:08.2]} 52... a4
{[%clk 0:00:03]} 53. Bc2 {[%clk 0:00:07.8]} 53... Ka3 {[%clk 0:00:03.6]} 54. Nd4
{[%clk 0:00:05.4]} 54... Bd2 {[%clk 0:00:02.4]} 55. h7 {[%clk 0:00:03.3]} 55...
Nxh7 {[%clk 0:00:02.5]} 56. Kxh7 {[%clk 0:00:04.2]} 56... Kxa2 {[%clk
0:00:03.3]} 57. Bxa4 {[%clk 0:00:03.9]} 57... Ka3 {[%clk 0:00:03.9]} 58. Bd1
{[%clk 0:00:03.9]} 58... Kb2 {[%clk 0:00:04.5]} 59. Bc2 {[%clk 0:00:03.9]} 59...
Be3 {[%clk 0:00:04.6]} 60. Bg6 {[%clk 0:00:04.2]} 60... Bxd4 {[%clk 0:00:04.8]}
61. Kg8 {[%clk 0:00:04.7]} 61... Be3 {[%clk 0:00:05.7]} 62. Bf5 {[%clk
0:00:04.7]} 62... Bd2 {[%clk 0:00:06.6]} 63. Kf7 {[%clk 0:00:05.3]} 63... Kb3
{[%clk 0:00:07.5]} 64. Ke6 {[%clk 0:00:05.8]} 64... Kc4 {[%clk 0:00:08.4]} 65.
Ke5 {[%clk 0:00:06]} 65... c2 {[%clk 0:00:09.3]} 66. Kf6 {[%clk 0:00:06.6]}
66... Bc3+ {[%clk 0:00:10]} 67. Ke6 {[%clk 0:00:06.3]} 67... c1=Q {[%clk
0:00:10.9]} 68. Bc2 {[%clk 0:00:07]} 68... Qxc2 {[%clk 0:00:10.7]} 0-1